bitfinex/quotes_ETHUSD_20240731
["timestamp","ask_amount","ask_price","bid_price","bid_amount"]
[1722385778020,1.59005735,3272.6,3272.2,3.05598]
[1722385778193,0.954087,3272.3,3272.2,3.05598]
[1722385778399,1.27211601,3272.4,3272.2,3.05598]
[1722385778765,1.27211601,3272.3,3272.2,3.05598]
[1722385779101,1.27208203,3272.3,3272.2,3.05598]
[1722385781281,1.27208203,3272.3,3272.2,3.361578]
[1722385781815,1.27208203,3272.5,3272.4,3.05586]
[1722385781990,1.59031439,3272.6,3272.5,3.05576]
[1722385782186,3.05535,3273.0,3272.3,2.358]
[1722385782387,3.05535,3273.0,3272.3,3.05595]
[1722385782388,1.59098436,3272.5,3272.3,3.05595]
[1722385782625,1.59098436,3272.5,3272.3,3.05589]
[1722385782918,1.59098436,3272.5,3272.4,3.05586]
[1722385783287,1.59098436,3272.6,3272.4,3.05586]
[1722385783875,1.59098436,3272.5,3272.4,3.05586]
[1722385784073,1.59098436,3272.6,3272.4,3.05586]
[1722385784389,1.59098436,3272.5,3272.4,3.05586]
[1722385784790,1.59098436,3272.5,3272.3,3.05589]
[1722385785004,1.59098436,3272.4,3272.3,3.05589]
[1722385785578,1.59140787,3272.4,3272.3,3.05589]
[1722385786073,1.59129616,3272.4,3272.3,3.05589]
[1722385787693,3.05548,3272.8,3272.3,3.05589]
[1722385787921,1.59139617,3272.4,3272.3,3.05589]
[1722385788216,1.59139617,3272.4,3272.1,3.05605]
[1722385788429,1.59139617,3272.4,3272.2,3.05596]
[1722385788588,1.59139617,3272.4,3272.3,3.05595]
[1722385788795,3.05551,3272.8,3272.3,3.05595]
[1722385789028,1.59146447,3272.4,3272.3,3.05595]
[1722385789510,1.59146447,3272.5,3272.4,3.05586]
[1722385790248,1.90975736,3272.7,3272.3,3.05595]
[1722385790453,1.59151033,3272.4,3272.3,3.05595]
[1722385790635,1.90975736,3272.8,3272.4,3.05586]
[1722385790838,1.90975736,3272.7,3272.4,3.05586]
[1722385791007,1.59165151,3272.5,3272.4,3.05586]
[1722385791207,1.90975736,3272.8,3272.4,3.05586]
[1722385791515,1.90975736,3272.7,3272.4,3.05581]
[1722385791829,1.59179833,3272.5,3272.4,3.55069082]
[1722385792032,2.4523,3273.1,3272.5,3.05576]
[1722385792357,1.91021717,3272.9,3272.6,3.05565]
[1722385792800,1.91021717,3272.9,3272.4,6.11162]
[1722385793035,1.59216316,3272.6,3272.5,3.05576]
[1722385793322,1.91021717,3272.8,3272.5,3.05576]
[1722385793646,1.91021717,3272.9,3272.5,3.05576]
[1722385793848,1.91021717,3272.8,3272.6,3.05567]
[1722385794013,1.91021717,3272.9,3272.7,3.05558]
[1722385794360,6.40426,3273.4,3272.8,3.05548]
[1722385794361,1.91021717,3273.0,3272.8,3.05548]
[1722385794568,1.91021717,3273.1,3272.9,3.360938]
[1722385794855,1.91021717,3273.2,3273.0,3.05521]
[1722385795203,3.05474,3273.6,3273.0,3.05521]
[1722385795400,1.91175488,3273.2,3273.0,3.05521]
[1722385795606,1.91175488,3273.2,3273.1,3.0552]
[1722385795919,1.91190811,3273.3,3273.1,3.0552]
[1722385796875,1.91190811,3273.3,3272.9,3.0553]
[1722385797086,1.91190811,3273.2,3272.9,3.0553]
[1722385797288,1.91186529,3273.2,3273.0,3.05529]
[1722385798075,1.91186529,3273.2,3272.9,3.0553]
[1722385798251,1.91186529,3273.2,3272.8,1.078]
[1722385798252,0.91186529,3273.0,3272.7,3.05552]
[1722385798445,1.078,3273.4,3272.7,3.709432]
[1722385798732,1.5932443,3272.8,3272.7,3.709432]
[1722385798934,1.5932443,3272.8,3272.7,6.765012]
[1722385799566,1.5932443,3272.9,3272.8,6.11096]
[1722385799775,1.5932443,3273.0,3272.9,6.11078]
[1722385799982,1.5932443,3273.0,3272.9,8.56898]
[1722385801082,1.91200931,3273.4,3273.3,3.05499]
[1722385801748,1.91200931,3273.5,3273.1,3.05515]
[1722385802081,1.91200931,3273.4,3273.1,3.05518]
[1722385802383,1.59271601,3273.2,3273.1,3.05518]
[1722385802582,1.91200931,3273.5,3273.2,3.05509]
[1722385802884,1.91200931,3273.5,3273.2,3.05506]
[1722385803042,1.91200931,3273.5,3273.3,3.05496]
[1722385803540,1.91200931,3273.6,3273.5,3.05483]
[1722385803982,3.05442,3274.0,3273.5,3.05483]
[1722385803983,1.91101671,3273.7,3273.5,3.05483]
[1722385804182,8.3383695,3274.0,3273.3,3.05501]
[1722385804183,1.91101671,3273.6,3273.3,3.05494]
[1722385804441,1.91101671,3273.6,3273.1,3.05513]
[1722385804442,1.91146375,3273.6,3273.1,3.05513]
[1722385804619,1.59263653,3273.3,3273.2,3.468423]
[1722385804953,3.05511,3273.2,3272.8,0.7842872]
[1722385805251,1.59266179,3272.9,3272.7,3.05552]
[1722385805413,1.59266179,3272.9,3272.6,2.3955]
[1722385805414,4.96628838,3273.1,3272.6,3.05567]
[1722385805596,1.27400534,3272.7,3272.6,3.05567]
[1722385806548,1.59252154,3272.8,3272.7,3.05558]
[1722385806747,1.59252154,3272.9,3272.8,3.05548]
[1722385806953,3.05472,3273.7,3273.0,3.05529]
[1722385807252,1.91096905,3273.4,3273.0,3.05528]
[1722385807540,1.59240136,3273.1,3273.0,3.05528]
[1722385807747,1.91096905,3273.3,3273.0,3.05528]
[1722385808341,1.91096905,3273.3,3273.1,3.05517]
[1722385808529,1.91096905,3273.5,3273.2,3.05509]
[1722385808856,2.22946389,3273.8,3273.3,3.05501]
[1722385808857,1.91096905,3273.6,3273.3,3.05501]
[1722385809015,1.91096905,3273.6,3273.1,3.05515]
[1722385809214,1.59187817,3273.2,3273.1,3.686189]
[1722385809415,1.59187817,3273.3,3273.2,3.05511]
[1722385809668,1.59187817,3273.3,3273.2,6.11022]
[1722385809815,1.91096905,3273.7,3273.3,3.05502]
[1722385809816,1.59187817,3273.4,3273.3,3.05502]
[1722385810019,1.91096905,3273.7,3273.3,3.05502]
[1722385810258,1.91009324,3273.6,3273.3,3.05502]
[1722385810570,1.5915323,3273.4,3273.3,3.05502]
[1722385810769,1.91009324,3273.6,3273.1,3.686189]
[1722385810931,1.91009324,3273.6,3273.3,3.05497]
[1722385811257,1.91009324,3273.7,3273.3,3.05497]
[1722385811565,1.5913484,3273.4,3273.2,3.0551]
[1722385811853,1.59135774,3273.3,3273.2,3.0551]
[1722385812214,1.91009324,3273.6,3273.2,3.0551]
[1722385812541,1.59127267,3273.3,3273.0,3.05524]
[1722385812746,1.27295284,3273.1,3273.0,0.59410859]
[1722385813062,1.59127267,3273.2,3272.9,0.4]
[1722385813218,3.05492,3273.5,3272.9,0.4]
[1722385813417,1.59111768,3273.1,3272.9,0.4]
[1722385813725,1.59110103,3273.0,3272.9,0.4]
[1722385813926,1.59110103,3273.1,3272.9,0.4]
[1722385814116,1.59110103,3273.1,3272.9,4.106489]
[1722385814719,1.2732273,3273.0,3272.9,4.106489]
[1722385815016,1.2732273,3273.0,3272.9,7.161879]
[1722385815249,1.59110103,3273.2,3273.0,3.0553]
[1722385815448,1.59144803,3273.1,3273.0,3.0553]
[1722385815634,1.59144803,3273.1,3273.0,3.7714789]
[1722385815813,1.27332662,3273.1,3273.0,3.7714789]
[1722385816332,1.59144803,3273.2,3273.1,3.0552]
[1722385816513,1.59228571,3273.3,3273.1,3.0552]
[1722385816921,1.59228571,3273.2,3273.1,3.0552]
[1722385817258,1.27399223,3273.2,3273.1,6.24166689]
[1722385817618,1.59228571,3273.3,3273.2,3.05511]
[1722385817814,1.59228571,3273.3,3273.1,6.24166689]
[1722385818018,1.59228571,3273.2,3273.1,3.77786689]
[1722385819222,1.59228571,3273.2,3273.1,0.72266689]
[1722385819447,1.59228571,3273.2,3272.9,3.45535]
[1722385819448,1.59228571,3273.2,3272.9,3.45534]
[1722385819617,1.27399412,3273.0,3272.9,3.45534]
[1722385819817,1.27398624,3273.0,3272.9,3.45534]
[1722385820030,1.27400183,3273.0,3272.9,3.45534]
[1722385820263,1.59249265,3273.1,3272.9,3.45534]
[1722385820429,1.59249265,3273.1,3272.9,6.50435288]
[1722385821121,1.59249265,3273.1,3272.9,3.45534]
[1722385821525,1.59249265,3273.1,3273.0,3.0553]
[1722385821728,1.27407487,3273.1,3273.0,6.1106]
[1722385821974,1.27407487,3273.1,3273.0,3.0553]
[1722385822259,1.27407487,3273.1,3273.0,6.1106]
[1722385822481,1.59249265,3273.3,3273.1,3.0552]
[1722385822772,1.59249265,3273.4,3273.3,3.05502]
[1722385822936,1.91111286,3273.6,3273.3,3.05502]
[1722385823338,1.91106963,3273.6,3273.3,3.05502]
[1722385823558,1.91106963,3273.7,3273.4,3.05491]
[1722385824122,1.91106963,3273.6,3273.4,3.05491]
[1722385824337,1.91106963,3273.6,3273.3,3.05502]
[1722385824559,1.91106963,3273.6,3273.4,0.845561]
[1722385824826,1.91106963,3273.7,3273.4,0.845561]
[1722385825027,1.91106963,3273.7,3273.4,3.900481]
[1722385826182,1.91132714,3273.7,3273.4,3.900481]
[1722385827102,1.91132714,3273.7,3273.6,3.05474]
[1722385827303,1.91132714,3273.9,3273.6,6.8049131]
[1722385827590,1.59287363,3273.8,3273.5,3.05481]
[1722385827796,1.2743884,3273.6,3273.5,6.10964]
[1722385827997,1.2743884,3273.7,3273.6,3.05474]
[1722385828146,1.59287363,3273.7,3273.6,3.05474]
[1722385829411,1.59272742,3273.8,3273.6,3.05474]
[1722385829611,1.59253957,3273.8,3273.7,3.05457]
[1722385829781,1.59253957,3273.9,3273.8,3.05455]
[1722385830111,1.59253957,3273.9,3273.8,6.1091]
[1722385830267,1.59258027,3274.0,3273.9,3.05446]
[1722385830599,1.59258027,3274.1,3274.0,3.05436]
[1722385830817,1.59258027,3274.1,3274.0,6.10872]
[1722385830959,1.59258027,3274.2,3274.1,3.05427]
[1722385831156,1.91082198,3274.5,3274.2,3.05416]
[1722385831611,1.91082198,3274.5,3274.2,3.05413]
[1722385831960,1.91082198,3274.5,3274.2,3.05412]
[1722385832172,1.91082198,3274.5,3273.7,5.45577]
[1722385832376,0.95534264,3273.9,3273.8,6.70446301]
[1722385833217,0.95534264,3273.9,3273.8,7.25446301]
[1722385833391,0.95534264,3274.0,3273.9,6.10892]
[1722385833700,0.95534264,3274.0,3273.9,6.65892]
[1722385835237,0.95534264,3274.1,3274.0,6.10872]
[1722385836454,1.27379019,3274.3,3274.1,6.10854]
[1722385836455,0.95534264,3274.2,3274.1,6.10854]
[1722385837898,0.95534264,3274.2,3274.1,8.57834]
[1722385838124,0.95534264,3274.2,3274.1,11.62735288]
[1722385838902,0.95534264,3274.4,3274.3,3.05408]
[1722385839133,1.27379019,3274.5,3274.4,3.05399]
[1722385840138,1.27313071,3274.5,3274.4,3.05399]
[1722385842245,3.05353,3274.9,3274.4,3.41768385]
[1722385842435,5.521,3275.2,3274.4,3.41768385]
[1722385842436,1.27272823,3274.5,3274.4,3.41768385]
[1722385842797,1.27272823,3274.6,3274.4,3.41768385]
[1722385843421,0.95437328,3274.5,3274.4,3.41768385]
[1722385844558,0.95437328,3274.6,3274.4,3.41768385]
[1722385845012,0.95437328,3274.6,3274.5,3.0539]
[1722385845341,0.95437328,3274.6,3274.5,3.6351902]
[1722385846055,0.95437328,3274.6,3274.5,6.6890902]
[1722385846208,0.95437328,3274.8,3274.7,6.10742]
[1722385846407,0.95437328,3274.9,3274.8,3.05362]
[1722385846717,0.95437328,3275.0,3274.9,3.05352]
[1722385847331,0.95437328,3275.0,3274.9,6.10704]
[1722385847646,1.27272823,3275.1,3275.0,3.05343]
[1722385847647,0.95437328,3275.1,3275.0,3.05343]
[1722385848242,1.27272823,3275.2,3274.9,3.05352]
[1722385848447,0.95454547,3275.1,3274.9,3.05352]
[1722385848770,0.95428326,3275.1,3275.0,3.05343]
[1722385848921,0.95428326,3275.1,3275.0,6.10686]
[1722385849125,0.95428326,3275.3,3275.2,3.05324]
[1722385849324,0.95428326,3275.3,3275.0,2.4077]
[1722385849325,0.95428326,3275.4,3275.3,3.05315]
[1722385849544,1.5904721,3275.7,3275.4,3.05306]
[1722385849545,0.95428326,3275.6,3275.4,3.05306]
[1722385849751,0.95428326,3275.7,3275.6,3.05287]
[1722385850286,0.95428326,3275.8,3275.6,3.05287]
[1722385850574,0.95428326,3275.9,3275.6,3.05287]
[1722385850864,0.95428326,3275.9,3275.8,3.05268]
[1722385851018,0.95428326,3276.0,3275.9,3.05259]
[1722385851219,0.95428326,3276.0,3275.9,4.12859]
[1722385851423,1.32928326,3276.1,3276.0,3.0525]
[1722385851654,0.375,3276.1,3276.0,3.0525]
[1722385855699,0.375,3276.1,3275.9,3.05259]
[1722385856049,0.375,3276.1,3276.0,3.0525]
[1722385856903,0.375,3276.1,3276.0,6.1660448]
[1722385857550,0.375,3276.1,3276.0,3.0525]
[1722385857947,0.375,3276.1,3276.0,6.16604334]
[1722385860606,0.375,3276.1,3276.0,6.655]
[1722385860912,0.375,3276.1,3276.0,15.49646377]
[1722385861112,0.375,3276.1,3276.0,21.54896377]
[1722385861269,0.375,3276.1,3276.0,18.49646377]
[1722385862893,0.375,3276.1,3276.0,21.54896377]
[1722385863193,0.375,3276.1,3276.0,18.49646377]
[1722385863717,0.375,3276.1,3276.0,56.54896377]
[1722385864899,2.4636,3277.6,3277.4,3.05114]
[1722385865101,3.05083,3277.8,3277.3,3.05127]
[1722385865597,2.4636,3277.9,3277.4,3.05117]
[1722385866707,2.4636,3277.9,3277.5,3.05109]
[1722385867023,2.4636,3277.9,3277.6,3.11197808]
[1722385867311,2.4829,3278.3,3277.7,3.0509]
[1722385867522,5.53326,3278.3,3277.7,3.05085]
[1722385867818,5.53326,3278.3,3277.7,3.05084]
[1722385868174,2.4829,3278.3,3277.7,3.05084]
[1722385868526,2.4829,3278.3,3277.9,3.05072]
[1722385869113,5.46092,3278.6,3278.0,3.05062]
[1722385869473,2.4108,3278.6,3278.2,3.0504]
[1722385869678,3.04993,3278.8,3278.3,3.05033]
[1722385869877,6.09953,3279.0,3278.4,3.05026]
[1722385870087,3.04974,3279.0,3278.4,3.05026]
[1722385870531,3.04974,3279.0,3278.2,3.05037]
[1722385870824,3.0499,3278.8,3278.2,3.11137139]
[1722385871029,3.0499,3278.8,3278.2,6.16176139]
[1722385871178,3.595794,3279.0,3278.3,3.05027]
[1722385871375,3.0498,3278.9,3278.3,3.05027]
[1722385871719,3.0499,3278.8,3278.3,3.05027]
[1722385872021,3.595824,3279.0,3278.3,3.05027]
[1722385872224,3.595824,3279.0,3278.4,3.0502]
[1722385872720,2.4108,3279.1,3278.6,3.05005]
[1722385872888,3.42443,3279.3,3278.8,3.04988]
[1722385873275,0.375,3279.3,3278.9,3.04979]
[1722385873477,0.375,3279.3,3279.0,3.0497]
[1722385873876,0.375,3279.3,3279.0,3.1106909]
[1722385874299,0.375,3279.3,3279.2,3.04952]
[1722385874985,0.375,3279.3,3279.2,6.16002416]
[1722385875187,0.375,3279.3,3279.2,7.26504242]
[1722385876785,0.375,3279.3,3279.2,10.31456242]
[1722385877098,0.375,3279.3,3279.2,45.31456242]
[1722385877287,0.375,3279.3,3279.2,51.36408242]
[1722385877491,0.375,3279.3,3279.2,53.80638242]
[1722385878000,5.4965938,3281.0,3280.5,3.04829]
[1722385878199,5.4965938,3281.0,3279.8,3.04889]
[1722385878200,0.1450638,3281.0,3280.6,0.05801093]
[1722385878406,0.1450638,3281.0,3280.1,10.012]
[1722385878407,0.1450638,3281.0,3280.9,3.04794]
[1722385878738,0.1450638,3281.0,3280.8,0.06095269]
[1722385879031,0.1450638,3281.0,3280.6,3.04819]
[1722385879194,0.1450638,3281.0,3280.7,3.04812]
[1722385879395,0.1450638,3281.0,3280.9,3.04794]
[1722385879900,0.1450638,3281.0,3280.8,0.06088137]
[1722385879901,0.1450638,3281.0,3280.8,3.04801]
[1722385880102,0.1450638,3281.0,3280.8,3.10896253]
[1722385880295,0.1450638,3281.0,3280.9,3.04794]
[1722385882204,0.1450638,3281.0,3280.3,38.04846]
[1722385882205,0.1450638,3281.0,3280.3,3.04843]
[1722385882520,0.1450638,3281.0,3280.5,3.04825]
[1722385882688,0.1450638,3281.0,3280.4,0.55]
[1722385882889,0.1450638,3281.0,3280.5,6.09653]
[1722385883138,0.1450638,3281.0,3280.6,0.55]
[1722385884324,0.1450638,3281.0,3280.6,3.59816]
[1722385884847,0.1450638,3281.0,3280.7,3.04811]
[1722385885541,0.1450638,3281.0,3280.9,3.04794]
[1722385886113,0.1450638,3281.0,3280.9,3.59794]
[1722385886497,0.1450638,3281.0,3280.4,3.04833]
[1722385886700,0.1450638,3281.0,3280.5,3.59827]
[1722385887298,3.04821,3280.7,3280.1,7.43]
[1722385887501,3.04821,3280.7,3280.1,10.47862]
[1722385887703,3.04821,3280.7,3280.1,10.47861]
[1722385887916,3.04805,3280.8,3280.2,3.04857]
[1722385888236,3.04837,3280.5,3280.1,7.43]
[1722385888441,0.1450638,3281.0,3280.1,7.43]
[1722385888442,3.04859,3280.2,3280.1,7.43]
[1722385888679,3.04859,3280.2,3279.6,15.31914]
[1722385888795,3.04841,3280.4,3279.6,15.31914]
[1722385889153,3.04825,3280.6,3279.9,3.04885]
[1722385889312,3.1929138,3281.0,3279.7,3.049]
[1722385889313,3.04856,3280.3,3279.7,3.049]
[1722385889502,3.04836,3280.5,3279.8,3.0489]
[1722385889703,3.353196,3280.5,3279.8,3.0489]
[1722385889931,3.04841,3280.4,3279.8,3.0489]
[1722385890142,3.353196,3280.5,3279.9,3.04885]
[1722385890358,3.353196,3280.5,3279.9,3.0488]
[1722385890518,3.04815,3280.7,3280.1,3.04868]
[1722385890856,3.04815,3280.7,3280.2,3.04855]
[1722385891403,0.1450638,3281.0,3280.3,3.109383]
[1722385891602,0.1450638,3281.0,3280.4,3.4429383]
[1722385891841,0.1450638,3281.0,3280.9,3.04794]
[1722385892150,0.1450638,3281.0,3280.9,3.10889028]
[1722385892358,0.1450638,3281.0,3280.6,3.04817]
[1722385892651,0.1450638,3281.0,3280.7,0.55]
[1722385893248,0.1450638,3281.0,3280.5,3.04828]
[1722385893545,0.1450638,3281.0,3280.7,3.04812]
[1722385894658,0.1450638,3281.0,3280.9,3.04794]
[1722385894993,0.1450638,3281.0,3280.9,3.10888993]
[1722385895170,0.1450638,3281.0,3280.9,6.15682993]
[1722385895308,0.1450638,3281.0,3280.9,12.15882]
[1722385895840,0.1450638,3281.0,3280.9,15.15882]
[1722385896156,0.1450638,3281.0,3280.9,16.993866]
[1722385902221,0.1450638,3281.0,3280.9,20.041806]
[1722385903047,0.1450638,3281.0,3280.9,23.089746]
[1722385903048,3.8e-06,3281.0,3280.9,23.089746]
[1722385903252,3.0461,3282.9,3282.3,3.0466]
[1722385903453,5.52016,3283.1,3282.4,0.30466]
[1722385903674,5.52016,3283.1,3282.3,6.09318]
[1722385903675,3.04601,3283.0,3282.3,6.09318]
[1722385903979,3.04616,3282.9,3282.4,0.55]
[1722385904341,5.52018,3283.1,3282.4,3.59652]
[1722385904542,3.046,3283.0,3282.4,3.59652]
[1722385904744,3.046,3283.0,3282.5,3.04645]
[1722385905282,3.046,3283.0,3282.4,0.55]
[1722385905283,3.04618,3282.8,3282.4,0.55]
[1722385906384,3.046,3283.0,3282.4,3.59654]
[1722385906787,3.0461,3282.9,3282.4,3.59654]
[1722385906971,3.04618,3282.8,3282.4,0.55]
[1722385907540,3.04618,3282.8,3282.2,3.59672]
[1722385907837,3.04605,3283.0,3282.3,3.04656]
[1722385908044,3.04605,3283.0,3282.4,3.59654]
[1722385908346,2.4742,3283.1,3282.5,3.04639]
[1722385908669,2.4742,3283.1,3282.4,0.55]
[1722385909193,3.04605,3283.0,3282.4,0.55]
[1722385909500,3.04609,3282.9,3282.4,4.327272]
[1722385909671,3.04609,3282.9,3282.4,3.59652]
[1722385909985,3.04618,3282.8,3282.0,3.04692]
[1722385910190,3.04641,3282.6,3282.0,3.04692]
[1722385910347,3.04641,3282.6,3282.1,0.304692]
[1722385910543,3.04621,3282.8,3282.1,0.304692]
[1722385910769,3.04602,3283.0,3282.1,3.04677]
[1722385910992,3.04618,3282.8,3282.1,3.04677]
[1722385911303,3.04618,3282.8,3282.1,3.04675]
[1722385911585,3.04618,3282.8,3282.2,3.04668]
[1722385912161,3.04602,3283.0,3282.3,3.04662]
[1722385912366,3.04602,3283.0,3282.5,3.04645]
[1722385912860,2.4742,3283.1,3282.5,3.04637]
[1722385913077,5.5201,3283.1,3282.6,3.10722963]
[1722385913383,3.0459,3283.1,3282.6,3.10722963]
[1722385913747,3.0459,3283.1,3282.4,0.55]
[1722385913975,3.0459,3283.1,3282.4,0.90966]
[1722385914158,3.04576,3283.3,3282.5,3.10731964]
[1722385914365,3.04576,3283.3,3282.8,3.04617]
[1722385914678,5.37216,3283.5,3282.8,3.10708704]
[1722385914679,3.04562,3283.4,3282.8,3.10708704]
[1722385915252,5.37216,3283.5,3283.0,3.04597]
[1722385915253,2.3266,3283.5,3283.0,3.04597]
[1722385915476,2.3266,3283.5,3283.1,3.0459]
[1722385915675,2.3266,3283.5,3282.9,3.046]
[1722385915879,2.3266,3283.5,3283.0,3.10689369]
[1722385916060,3.04545,3283.6,3283.1,0.06091365]
[1722385916263,3.04545,3283.6,3283.1,3.10678365]
[1722385916662,6.09097,3283.6,3282.9,3.046]
[1722385916878,3.04545,3283.6,3283.0,3.59598]
[1722385917075,3.04545,3283.6,3283.1,3.04588]
[1722385917646,3.04571,3283.4,3283.0,0.55]
[1722385917954,3.04571,3283.4,3282.8,3.04611]
[1722385917955,3.04603,3283.0,3282.4,0.35966]
[1722385918114,3.04615,3282.9,3282.3,3.04663]
[1722385918312,5.47233,3283.0,3282.4,3.59648]
[1722385918313,2.4263,3283.0,3282.4,3.59648]
[1722385918655,5.47231,3283.0,3282.5,3.04644]
[1722385919153,3.04628,3282.7,3282.3,0.304663]
[1722385919359,2.4263,3283.0,3282.3,0.304663]
[1722385919540,2.4263,3283.0,3281.7,2.4741]
[1722385919541,3.04675,3282.2,3281.7,2.4741]
[1722385919712,2.4263,3283.0,3281.7,3.04718]
[1722385919713,3.04658,3282.4,3281.7,3.04718]
[1722385919911,3.04609,3282.9,3281.8,3.04705]
[1722385919912,3.04652,3282.5,3281.8,3.04705]
[1722385920145,3.04644,3282.6,3281.8,3.04705]
[1722385920454,3.04657,3282.4,3281.8,0.609423]
[1722385921010,3.04641,3282.6,3281.9,3.047]
[1722385921361,3.04641,3282.6,3282.1,3.04682]
[1722385921563,3.04652,3282.5,3281.9,3.047]
[1722385921748,3.04621,3282.8,3282.1,3.04682]
[1722385921948,2.4263,3283.0,3282.4,3.04647]
[1722385921949,5.47234,3283.0,3282.4,3.04647]
[1722385922268,3.04607,3283.0,3282.4,3.04647]
[1722385922482,3.04609,3282.9,3282.4,3.04647]
[1722385922766,3.04607,3283.0,3282.4,3.04646]
[1722385923476,3.04607,3283.0,3282.5,3.04645]
[1722385923769,3.04582,3283.2,3282.7,3.04621]
[1722385923971,3.04547,3283.6,3283.0,3.04594]
[1722385924172,3.04547,3283.6,3283.1,0.55]
[1722385924378,3.04547,3283.6,3283.0,0.55]
[1722385924732,6.09098,3283.6,3283.0,3.59594]
[1722385924934,6.09097,3283.6,3283.0,4.260134]
[1722385925274,3.04553,3283.5,3282.8,3.04613]
[1722385925433,3.04567,3283.4,3282.8,3.04613]
[1722385925627,3.04567,3283.4,3282.8,6.09225]
[1722385925947,3.04567,3283.4,3282.9,3.04608]
[1722385926273,3.25889527,3283.8,3282.6,40.36568]
[1722385926471,3.04569,3283.4,3282.7,0.55]
[1722385926676,4.45199083,3283.7,3282.6,2.67331609]
[1722385926677,3.04587,3283.2,3282.6,2.67331609]
[1722385926826,3.04589,3283.2,3282.2,0.304682]
[1722385927032,0.95359527,3283.4,3282.2,3.351402]
[1722385927033,3.04627,3282.7,3282.2,3.351402]
[1722385927345,3.04608,3282.9,3282.3,0.3351402]
[1722385927346,3.0462,3282.8,3282.3,0.3351402]
[1722385929178,3.04641,3282.6,3282.3,0.3351402]
[1722385929377,3.04641,3282.6,3282.0,3.04686]
[1722385929593,6.09249,3282.8,3282.2,3.04673]
[1722385929820,3.04627,3282.7,3282.2,3.04673]
[1722385930135,3.04627,3282.7,3282.1,0.55]
[1722385930341,3.99960527,3283.0,3282.1,1.155554]
[1722385930506,3.99960527,3283.0,3282.4,3.0465]
[1722385930507,3.04601,3283.0,3282.4,3.0465]
[1722385931018,3.04601,3283.0,3282.5,3.04643]
[1722385931198,0.95359527,3283.1,3282.5,6.09281]
[1722385931394,3.99941527,3283.2,3282.5,3.04638]
[1722385931593,1.27146037,3283.3,3282.6,3.350988]
[1722385931594,3.99939527,3283.3,3282.6,3.350988]
[1722385931789,3.0458,3283.3,3282.7,3.04625]
[1722385932011,3.0458,3283.3,3282.7,3.04621]
[1722385932221,3.99939527,3283.3,3282.7,3.04621]
[1722385932440,3.99995403,3283.3,3282.7,3.04621]
[1722385932665,3.99995403,3283.3,3282.7,6.09242]
[1722385932969,3.99982403,3283.4,3282.9,3.04608]
[1722385933153,0.95415403,3283.3,3282.9,3.04608]
[1722385933368,3.99982403,3283.4,3282.9,3.04608]
[1722385933558,0.95415403,3283.4,3282.9,3.04608]
[1722385933741,3.04558,3283.5,3283.0,3.04594]
[1722385933944,3.04558,3283.5,3282.9,3.04608]
[1722385934144,3.99982403,3283.4,3282.9,3.04608]
[1722385934324,0.95415403,3283.5,3282.9,3.04605]
[1722385934524,0.95415403,3283.6,3283.3,3.04569]
[1722385934729,0.95415403,3283.7,3283.3,6.09135]
[1722385934925,0.95415403,3283.8,3283.4,3.04562]
[1722385935131,0.95415403,3283.8,3283.5,3.04545]
[1722385935356,4.31727537,3284.0,3283.0,0.55]
[1722385935357,0.95415403,3283.7,3283.1,3.04585]
[1722385935539,0.95502342,3283.7,3283.3,3.04569]
[1722385936158,0.95502342,3283.6,3283.2,3.59579]
[1722385936473,0.95502342,3283.5,3283.0,35.0]
[1722385936630,0.95502342,3283.2,3282.8,3.04613]
[1722385936831,0.95502342,3283.3,3282.4,2.4701]
[1722385937140,0.95502342,3283.3,3282.3,3.04659]
[1722385937141,0.95502342,3282.7,3282.3,3.04659]
[1722385937345,0.95502342,3282.7,3282.0,2.4701]
[1722385937648,0.95502342,3282.7,3282.4,3.04649]
[1722385937966,0.95502342,3282.7,3282.5,3.04644]
[1722385938329,0.95502342,3282.7,3282.6,3.04636]
[1722385938533,0.95502342,3282.8,3282.6,3.04636]
[1722385939132,0.95502342,3282.7,3282.6,3.04636]
[1722385939326,0.95502342,3282.8,3282.7,3.04627]
[1722385939726,1.27336456,3283.0,3282.8,3.04618]
[1722385939727,0.95502342,3282.9,3282.8,3.04618]
[1722385939966,1.27336456,3283.0,3282.7,0.609271]
[1722385939967,0.95685603,3283.0,3282.7,0.609271]
[1722385940183,1.27336456,3282.8,3282.4,0.46604435]
[1722385940347,0.95741587,3282.5,3282.4,0.46604435]
[1722385940561,0.95741587,3282.5,3282.4,1.01604435]
[1722385940791,0.95741587,3282.5,3282.4,4.06259435]
[1722385940950,0.95741587,3282.6,3282.5,3.04645]
[1722385941262,1.27336456,3282.7,3282.6,3.04635]
[1722385941468,0.95785041,3282.8,3282.7,3.04627]
[1722385941904,1.27336456,3282.8,3282.5,3.75730444]
[1722385942047,0.95783073,3282.6,3282.5,3.75730444]
[1722385942249,0.95783073,3282.7,3282.6,3.04636]
[1722385942479,0.95783073,3282.7,3282.6,0.78197088]
[1722385942678,1.59626149,3282.8,3282.4,1.01604435]
[1722385942858,1.27731516,3282.6,3282.4,4.06258435]
[1722385943061,1.27731516,3282.6,3282.5,3.04645]
[1722385943275,1.27731516,3282.6,3282.4,4.06253435]
[1722385943699,0.95816376,3282.5,3282.4,4.06253435]
[1722385944074,1.27731516,3282.6,3282.5,3.04645]
[1722385944392,1.59626149,3282.7,3282.5,3.04645]
[1722385944567,4.96151379,3283.0,3282.5,3.75735844]
[1722385944568,1.27785771,3282.6,3282.5,3.75735844]
[1722385945152,1.27785771,3282.6,3282.5,6.80380844]
[1722385945353,0.95851131,3282.6,3282.5,6.80380844]
[1722385945801,1.27785771,3282.7,3282.6,3.04636]
[1722385946010,1.27785771,3282.7,3282.6,3.82833628]
[1722385946466,1.27785771,3282.8,3282.7,6.09254]
[1722385946663,1.27829844,3282.9,3282.8,3.04618]
[1722385946865,1.27829844,3282.9,3282.8,3.78861663]
[1722385947265,1.59778874,3282.9,3282.8,3.78861663]
[1722385947458,1.59812083,3282.9,3282.8,3.78861663]